bitfinex-derivatives/quotes_BTCF0:USTF0_20250822
["timestamp","ask_amount","ask_price","bid_price","bid_amount"]
[1755872624392,0.20074,114940.0,114900.0,0.0878334]
[1755872624698,0.28271,114940.0,114930.0,0.13598]
[1755872624911,0.28271,114930.0,114910.0,0.34543]
[1755872625198,0.08197,114920.0,114910.0,0.13598]
[1755872625397,0.0002,114920.0,114910.0,0.34543]
[1755872625706,0.0002,114920.0,114910.0,0.63878]
[1755872626097,0.0002,114920.0,114910.0,0.17933]
[1755872626297,0.20074,114910.0,114900.0,0.13598]
[1755872626502,0.28271,114890.0,114850.0,1.61111]
[1755872626799,0.20074,114870.0,114860.0,0.13598]
[1755872626992,0.0002,114870.0,114860.0,0.13598]
[1755872627198,0.45094,114870.0,114860.0,0.13598]
[1755872627501,0.29579,114860.0,114850.0,0.14256]
[1755872627802,0.29599,114860.0,114850.0,0.14256]
[1755872627998,0.54679,114860.0,114850.0,0.003]
[1755872628197,0.0870772,114850.0,114830.0,0.14256]
[1755872628399,0.29479,114840.0,114820.0,0.14256]
[1755872628595,0.0002,114840.0,114830.0,0.34557]
[1755872629091,0.20735,114840.0,114830.0,0.14256]
[1755872629297,0.0002,114840.0,114830.0,0.34557]
[1755872629499,0.0002,114840.0,114830.0,0.59557]
[1755872629706,0.0002,114840.0,114830.0,0.63992]
[1755872629906,0.005,114860.0,114840.0,0.04435]
[1755872630106,0.007,114860.0,114850.0,0.34557]
[1755872630302,0.21415,114860.0,114850.0,0.14256]
[1755872630503,0.007,114860.0,114850.0,0.34557]
[1755872630999,0.29579,114870.0,114850.0,0.34557]
[1755872631307,0.29579,114880.0,114870.0,0.14256]
[1755872631507,0.44528,114880.0,114860.0,0.34557]
[1755872631703,0.29579,114870.0,114860.0,0.14256]
[1755872631901,0.69528,114880.0,114860.0,0.34557]
[1755872632104,0.54579,114880.0,114870.0,0.14256]
[1755872632302,0.08864,114890.0,114880.0,0.14256]
[1755872632503,0.20715,114900.0,114880.0,0.20301]
[1755872632702,0.29579,114910.0,114890.0,0.20301]
[1755872632909,0.29579,114910.0,114900.0,0.14256]
[1755872633103,0.08884,114910.0,114900.0,0.14256]
[1755872633405,0.0002,114910.0,114900.0,0.64072]
[1755872633609,0.20715,114940.0,114910.0,0.04435]
[1755872633800,0.08864,114950.0,114930.0,0.14256]
[1755872634000,0.29579,114950.0,114930.0,0.14256]
[1755872634202,0.29579,114940.0,114900.0,0.20301]
[1755872634503,0.20715,114920.0,114910.0,0.14256]
[1755872634707,0.29579,114920.0,114890.0,1.95748]
[1755872634901,0.29579,114910.0,114890.0,0.14256]
[1755872635203,0.08864,114910.0,114890.0,0.14256]
[1755872635402,0.4256716,114910.0,114890.0,0.14256]
[1755872635709,0.20715,114920.0,114900.0,0.34557]
[1755872635910,0.20715,114920.0,114910.0,0.14256]
[1755872636101,0.00715,114910.0,114900.0,0.14256]
[1755872636407,0.08864,114900.0,114890.0,0.14256]
[1755872636608,0.08864,114900.0,114880.0,0.34557]
[1755872636802,0.08884,114900.0,114890.0,0.14256]
[1755872637107,0.08884,114900.0,114870.0,1.56752]
[1755872637108,0.3251694,114900.0,114870.0,1.81488]
[1755872637307,0.08864,114890.0,114870.0,1.77053]
[1755872637698,0.1756891,114890.0,114870.0,1.56752]
[1755872637899,0.08864,114880.0,114860.0,1.65532]
[1755872638201,0.29579,114880.0,114860.0,1.85833]
[1755872638395,0.0878546,114880.0,114820.0,0.0870969]
[1755872638606,0.29579,114870.0,114840.0,0.04435]
[1755872638801,0.29579,114870.0,114850.0,0.20301]
[1755872638802,0.29279,114870.0,114850.0,0.20301]
[1755872638998,0.29279,114870.0,114860.0,0.14256]
[1755872639400,0.20415,114870.0,114860.0,0.14256]
[1755872639605,0.20415,114870.0,114860.0,0.14756]
[1755872640109,0.08864,114870.0,114860.0,0.14756]
[1755872640310,1.09086487,114870.0,114860.0,0.005]
[1755872640507,0.23813,114860.0,114840.0,0.14256]
[1755872640702,0.0002,114860.0,114830.0,0.0008]
[1755872640907,0.08864,114870.0,114840.0,0.20301]
[1755872641103,0.1777029,114870.0,114830.0,0.25236]
[1755872641307,0.002,114870.0,114850.0,0.20301]
[1755872641507,0.002,114870.0,114860.0,0.25236]
[1755872641707,0.002,114870.0,114860.0,0.20301]
[1755872641708,0.0870613,114870.0,114860.0,0.20301]
[1755872641910,0.003,114860.0,114840.0,0.04935]
[1755872642210,0.003,114860.0,114850.0,0.20301]
[1755872642409,0.003,114860.0,114850.0,0.25236]
[1755872642811,0.003,114860.0,114850.0,0.34557]
[1755872643016,0.6358588,114860.0,114850.0,0.14256]
[1755872643419,0.34164,114860.0,114850.0,0.34557]
[1755872643617,0.253,114860.0,114850.0,0.14256]
[1755872643912,0.1757195,114850.0,114830.0,0.34857]
[1755872644112,0.5323595,114850.0,114830.0,0.34857]
[1755872644309,0.29579,114850.0,114830.0,0.14556]
[1755872644514,0.1759134,114860.0,114840.0,0.34557]
[1755872644714,0.20715,114850.0,114840.0,0.34557]
[1755872645012,0.0870888,114840.0,114830.0,0.14256]
[1755872645210,0.0870888,114840.0,114810.0,1.58475781]
[1755872645211,0.2942492,114820.0,114810.0,0.15987781]
[1755872645405,0.3830892,114820.0,114810.0,0.01731781]
[1755872645610,0.7825792,114820.0,114810.0,0.01731781]
[1755872645813,0.69548,114820.0,114810.0,0.01731781]
[1755872646004,0.08884,114820.0,114810.0,0.36288781]
[1755872646205,0.0002,114820.0,114810.0,0.66223781]
[1755872646613,0.0022,114820.0,114810.0,0.66323781]
[1755872646813,0.2522,114820.0,114810.0,0.16087781]
[1755872647114,0.0022,114820.0,114810.0,0.66323781]
[1755872647506,0.003,114850.0,114810.0,0.66403781]
[1755872647713,0.0870841,114840.0,114830.0,0.14256]
[1755872648020,0.29579,114840.0,114820.0,0.34557]
[1755872648209,0.29579,114840.0,114830.0,0.14256]
[1755872648515,0.2942341,114840.0,114830.0,0.14256]
[1755872648713,0.3828741,114840.0,114830.0,0.14256]
[1755872648919,0.29579,114860.0,114840.0,0.20301]
[1755872649111,0.3828514,114870.0,114850.0,0.34557]
[1755872649311,0.3828589,114860.0,114850.0,0.14256]
[1755872649608,0.2992341,114840.0,114830.0,0.14256]
[1755872649811,0.30079,114840.0,114830.0,0.14256]
[1755872650111,0.005,114840.0,114830.0,0.64492]
[1755872650312,0.09464,114860.0,114850.0,0.34557]
[1755872650508,0.006,114860.0,114850.0,0.34557]
[1755872650709,0.006,114860.0,114850.0,0.7327965]
[1755872650921,0.01973784,114880.0,114870.0,0.4827813]
[1755872651215,0.31514841,114910.0,114890.0,0.34557]
[1755872651416,0.31514841,114910.0,114900.0,0.14256]
[1755872651611,0.01935841,114910.0,114900.0,0.39492]
[1755872651923,0.01927235,114930.0,114910.0,0.39492]
[1755872652215,0.00142613,114940.0,114930.0,0.39492]
[1755872652721,0.08864,114970.0,114930.0,0.2508]
[1755872652919,0.91418756,114990.0,114970.0,0.34557]
[1755872652920,0.44528,114990.0,114970.0,0.34557]
[1755872653221,0.31550493,115000.0,114980.0,0.34557]
[1755872653421,0.40326793,115000.0,114980.0,0.34557]
[1755872653615,0.40326793,115000.0,114970.0,0.14256]
[1755872653616,0.81046347,114990.0,114970.0,0.14256]
[1755872654010,0.81046347,114990.0,114950.0,0.34557]
[1755872654011,0.23813,114980.0,114950.0,0.34557]
[1755872654215,0.95995347,114970.0,114950.0,0.14256]
[1755872654411,0.01,114940.0,114930.0,0.34757]
[1755872654616,0.0102,114940.0,114930.0,0.39692]
[1755872654812,0.72182347,114970.0,114950.0,0.34557]
[1755872655018,0.20715,114960.0,114950.0,0.14256]
[1755872655314,0.20715,114940.0,114930.0,0.14456]
[1755872655525,0.87131347,114950.0,114930.0,0.34757]
[1755872655725,0.51467347,114950.0,114940.0,0.34557]
[1755872656230,0.006,114970.0,114960.0,0.40472]
[1755872656728,0.72782347,114970.0,114960.0,0.14256]
[1755872656931,0.70128,114970.0,114950.0,0.14256]
[1755872657128,0.51467347,114960.0,114950.0,0.34551]
[1755872657322,0.79897347,114960.0,114940.0,0.14591]
[1755872657529,0.005,114950.0,114940.0,0.40901]
[1755872658024,0.51467347,114960.0,114950.0,0.14591]
[1755872658232,0.70953347,114960.0,114950.0,0.14591]
[1755872658534,0.19466,114950.0,114940.0,0.14591]
[1755872658831,0.0052,114950.0,114940.0,0.34886]
[1755872659022,0.0052,114950.0,114940.0,0.40801]
[1755872659333,0.0002,114950.0,114940.0,0.40801]
[1755872659537,0.0002,114950.0,114940.0,0.34886]
[1755872659727,0.0002,114950.0,114940.0,0.14591]
[1755872660030,0.51487347,114950.0,114940.0,0.40801]
[1755872660232,0.0002,114950.0,114940.0,0.65881]
[1755872660425,0.006,114960.0,114950.0,0.40881]
[1755872660621,0.93484347,115020.0,114980.0,0.40801]
[1755872660930,0.2843,115030.0,115010.0,0.20295]
[1755872661129,0.2228093,115040.0,115010.0,0.20295]
[1755872661130,0.79897347,115040.0,115020.0,0.34886]
[1755872661334,0.88670617,115040.0,115030.0,0.14591]
[1755872661628,0.88670617,115040.0,115010.0,0.14591]
[1755872661629,0.2816078,115020.0,115010.0,0.14591]
[1755872661828,0.79897347,115020.0,115010.0,0.14591]
[1755872662033,0.0869411,115030.0,115020.0,0.34886]
[1755872662538,0.70024857,115040.0,115030.0,0.34886]
[1755872662734,0.70024857,115040.0,115030.0,0.14591]
[1755872662921,0.86331347,115040.0,115020.0,0.34986]
[1755872663123,0.52367347,115040.0,115030.0,0.34886]
[1755872663321,0.33053,115050.0,115030.0,0.34886]
[1755872663532,0.51467347,115040.0,115030.0,0.34886]
[1755872663730,0.0002,115040.0,115030.0,0.34886]
[1755872663932,0.79646617,115040.0,115030.0,0.14591]
[1755872664136,0.3712402,115030.0,115020.0,0.001]
[1755872664433,0.2845,115030.0,115020.0,0.001]
[1755872664633,0.3714402,115030.0,115020.0,0.001]
[1755872664938,0.0869554,115010.0,115000.0,0.34886]
[1755872665131,0.5073254,115010.0,114990.0,0.34886]
[1755872665331,0.5071329,115000.0,114970.0,0.34886]
[1755872665526,0.5071329,115000.0,114980.0,0.14591]
[1755872665527,0.2818305,114990.0,114980.0,0.14591]
[1755872665731,0.51467347,114980.0,114970.0,0.34886]
[1755872665931,0.5071234,115020.0,114980.0,0.40801]
[1755872666136,0.19466,115000.0,114990.0,0.14591]
[1755872666439,0.42017,115020.0,115000.0,0.34886]
[1755872666639,0.69125537,115030.0,115010.0,0.14591]
[1755872666933,0.3712629,115000.0,114990.0,0.14591]
[1755872667135,0.371278,114980.0,114970.0,0.14591]
[1755872667339,0.79897347,114980.0,114940.0,0.0008]
[1755872667635,0.0869726,114990.0,114970.0,0.14591]
[1755872667831,0.08964,114990.0,114950.0,0.0008]
[1755872668031,0.3712705,114990.0,114980.0,0.14591]
[1755872668233,0.3712705,114990.0,114960.0,0.05915]
[1755872668432,0.3712705,114990.0,114920.0,1.72419485]
[1755872668433,0.08964,114990.0,114950.0,0.0877985]
[1755872668736,0.2843,115000.0,114980.0,0.34886]
[1755872668936,0.3712635,115000.0,114980.0,0.34886]
[1755872669137,0.0869714,114990.0,114950.0,0.05915]
[1755872669335,0.19486,114980.0,114970.0,0.14591]
[1755872669530,0.19486,114980.0,114960.0,0.20295]
[1755872669531,0.3714779,114980.0,114960.0,0.20295]
[1755872669834,0.3712855,114970.0,114960.0,0.14591]
[1755872670040,0.08984,114970.0,114960.0,0.34886]
[1755872670241,0.0002,114970.0,114960.0,0.34886]
[1755872670639,0.5081455,114990.0,114970.0,0.0008]
[1755872670939,0.0879705,114990.0,114980.0,0.34886]
[1755872671141,0.001,114990.0,114980.0,0.34966]
[1755872671441,0.001,114990.0,114980.0,0.65801]
[1755872671936,0.001,114990.0,114980.0,0.65881]
[1755872672131,0.001,114990.0,114980.0,0.65801]
[1755872672333,0.005,115000.0,114990.0,0.40801]
[1755872672533,0.005,115000.0,114990.0,0.65801]
[1755872672742,0.3712489,115020.0,115000.0,0.34886]
[1755872672939,0.2843,115020.0,114970.0,0.0877857]
[1755872673142,0.2843,115010.0,115000.0,0.14591]
[1755872673441,0.2843,115010.0,114990.0,0.20295]
[1755872673642,0.2843,115010.0,115000.0,0.14591]
[1755872673830,0.08964,115010.0,115000.0,0.34886]
[1755872674029,0.0002,115010.0,115000.0,0.40801]
[1755872674241,0.0002,115010.0,115000.0,0.34886]
[1755872674740,0.0042,115010.0,115000.0,0.65801]
[1755872674933,0.0042,115010.0,115000.0,0.72881347]
[1755872675133,0.19466,115040.0,115000.0,0.52666347]
[1755872675335,0.19466,115030.0,115020.0,0.14591]
[1755872675536,1.02177737,115040.0,115020.0,0.14591]
[1755872675743,0.93484347,115040.0,115020.0,0.34886]
[1755872675937,0.79897347,115040.0,115030.0,0.14591]
[1755872676136,0.19466,115030.0,115020.0,0.14591]
[1755872676331,0.2843,115030.0,115020.0,0.14591]
[1755872676530,0.8688779,115100.0,115020.0,0.34886]
[1755872676531,0.82710997,115050.0,115020.0,0.34886]
[1755872676731,0.19966,115040.0,115030.0,0.14591]
[1755872676932,0.3762327,115040.0,115030.0,0.14591]
[1755872677137,0.2843,115030.0,115020.0,0.14591]
[1755872677435,0.007,115040.0,115030.0,0.34886]
[1755872677634,0.005,115040.0,115030.0,0.40801]
[1755872677836,0.005,115040.0,115030.0,0.34886]
[1755872678041,0.2893,115040.0,115030.0,0.14591]
[1755872678239,0.2893,115040.0,115030.0,0.34886]
[1755872678437,0.2893,115040.0,115030.0,0.14591]
[1755872678438,0.78092033,115040.0,115030.0,0.14591]
[1755872678746,0.19466,115030.0,115020.0,0.14591]
[1755872678943,0.20186,115030.0,115020.0,0.14591]
[1755872679142,0.0072,115030.0,115020.0,0.14591]
[1755872679445,0.0072,115030.0,115020.0,0.34886]
[1755872679947,0.0002,115030.0,115020.0,0.34886]
[1755872680447,0.49162033,115030.0,115020.0,0.34886]
[1755872680946,0.69328033,115030.0,115020.0,0.34886]
[1755872681245,1.0790612,115030.0,115020.0,0.14591]
[1755872681452,0.68237,115030.0,115010.0,0.34886]
[1755872681747,0.5325612,115020.0,115010.0,0.34886]
[1755872681947,0.9529312,115020.0,115000.0,0.26407086]
[1755872682136,0.7272212,115010.0,115000.0,0.46702086]
[1755872682344,0.8170612,115010.0,115000.0,0.46702086]
[1755872682649,0.5327612,115010.0,115000.0,0.77617086]
[1755872683144,0.5327612,115010.0,115000.0,0.71702086]
[1755872683145,0.0002,115010.0,115000.0,0.71702086]
[1755872683344,0.8170612,115010.0,115000.0,0.71702086]
[1755872683642,0.6224012,115010.0,115000.0,0.46702086]
[1755872683847,0.0052,115010.0,115000.0,0.77617086]
[1755872684439,0.5325612,115040.0,115010.0,0.20295]
[1755872684639,0.13587,115070.0,115040.0,0.34886]
[1755872684845,0.2843,115070.0,115060.0,0.34886]
[1755872685143,0.2843,115080.0,115070.0,0.14591]
[1755872685343,0.83142404,115080.0,115070.0,0.14591]
[1755872685545,1.08142404,115080.0,115070.0,0.14591]
[1755872685746,0.88676404,115080.0,115070.0,0.34886]
[1755872686144,1.08142404,115080.0,115070.0,0.14591]
[1755872686344,0.19466,115070.0,115060.0,0.14591]
[1755872686651,0.08964,115070.0,115060.0,0.34886]
[1755872686844,0.8168612,115070.0,115060.0,0.34886]
[1755872687041,1.2027312,115070.0,115050.0,0.34711]
[1755872687246,0.2843,115070.0,115060.0,0.14456]
[1755872687448,0.3213382,115060.0,115040.0,0.02885268]
[1755872687650,0.8112212,115050.0,115040.0,0.14456]
[1755872687846,0.8114212,115050.0,115040.0,0.14456]
[1755872688049,0.5327612,115050.0,115040.0,0.40491]
[1755872688347,0.5327612,115050.0,115040.0,0.65491]
[1755872688549,0.73915404,115050.0,115040.0,0.59576]
[1755872688747,0.01476284,115050.0,115040.0,0.65891]
[1755872688944,0.01476284,115050.0,115040.0,0.7290143]
[1755872689144,0.01476284,115050.0,115040.0,0.75764806]
[1755872690354,0.5325612,115080.0,115040.0,0.35353806]
[1755872690653,0.5325612,115060.0,115050.0,0.40491]
[1755872690845,0.7243912,115060.0,115050.0,0.34576]
[1755872691043,0.27866,115060.0,115050.0,0.34576]
[1755872691242,0.27866,115060.0,115050.0,0.14456]
[1755872691243,0.8113088,115060.0,115050.0,0.14456]
[1755872691447,0.8112212,115060.0,115050.0,0.14456]
[1755872691754,1.1481388,115060.0,115040.0,0.09873806]
[1755872691947,0.27866,115050.0,115040.0,0.14456]
[1755872692143,0.6831512,115060.0,115040.0,0.34576]
[1755872692349,0.8142212,115060.0,115050.0,0.14456]
[1755872693055,0.8142212,115060.0,115040.0,0.26035]
[1755872693056,0.3655851,115050.0,115040.0,0.21426186]
[1755872693244,0.5131751,115050.0,115040.0,0.06970186]
[1755872693448,0.42625,115050.0,115020.0,1.96455]
[1755872693649,0.0002,115040.0,115030.0,0.4918502]
[1755872693850,0.003,115060.0,115030.0,0.0008]
[1755872693851,0.003,115050.0,115030.0,0.0008]
[1755872694154,0.003,115050.0,115040.0,0.0877327]
[1755872694458,0.23442,115090.0,115050.0,0.4926351]
[1755872694754,0.42625,115110.0,115090.0,0.34576]
[1755872694953,0.9588112,115110.0,115100.0,0.14456]
[1755872695143,0.8112212,115110.0,115100.0,0.14456]
[1755872695749,0.8112212,115110.0,115080.0,0.26035]
[1755872696055,0.08683,115090.0,115080.0,0.14456]
[1755872696254,0.14759,115100.0,115090.0,0.14456]
[1755872696255,0.08683,115100.0,115090.0,0.14456]
[1755872696458,0.08683,115100.0,115090.0,0.34576]
[1755872696668,0.5325612,115100.0,115090.0,0.34576]
[1755872696851,0.5325612,115100.0,115090.0,0.65491]
[1755872697046,0.19183,115110.0,115100.0,0.40491]
[1755872697047,0.005,115110.0,115100.0,0.40491]
[1755872697256,0.0052,115110.0,115100.0,0.47306637]
[1755872697558,0.0002,115110.0,115100.0,0.41391637]
[1755872697852,0.19203,115110.0,115100.0,0.21271637]
[1755872698053,0.52886,115110.0,115100.0,0.21271637]
[1755872698251,0.67645,115110.0,115100.0,0.06815637]
[1755872698450,0.2502,115110.0,115100.0,0.34576]
[1755872698653,0.5327612,115110.0,115100.0,0.59576]
[1755872698848,0.8114212,115110.0,115100.0,0.14456]
[1755872699160,0.27866,115100.0,115090.0,0.14456]
[1755872699456,0.27866,115090.0,115080.0,0.14456]
[1755872699654,0.42645,115090.0,115070.0,0.14456]
[1755872699856,0.8114212,115090.0,115080.0,0.34576]
[1755872700154,0.0002,115090.0,115080.0,0.34576]
[1755872700354,0.8114212,115090.0,115080.0,0.14456]
[1755872700551,0.0002,115090.0,115080.0,0.40491]
[1755872700748,0.0002,115090.0,115080.0,0.65491]
[1755872700954,0.08703,115090.0,115080.0,0.39456]
[1755872701152,0.0002,115090.0,115080.0,0.65491]
[1755872701360,0.5327612,115090.0,115080.0,0.65491]
[1755872701656,0.0002,115090.0,115080.0,0.59576]
[1755872701862,0.5327612,115090.0,115080.0,0.40491]
[1755872702052,0.5327612,115090.0,115080.0,0.65491]
[1755872702555,0.0002,115090.0,115080.0,0.7426123]
[1755872702960,0.0002,115090.0,115080.0,0.65571]
[1755872703262,0.19183,115120.0,115090.0,0.0868946]
[1755872703556,0.5325612,115110.0,115100.0,0.4917972]
[1755872703759,0.5325612,115120.0,115110.0,0.40491]
[1755872703960,0.8112212,115130.0,115120.0,0.34576]
[1755872704155,0.01912711,115140.0,115130.0,0.14456]
[1755872704356,0.74351831,115140.0,115130.0,0.14456]
[1755872704662,0.29778711,115140.0,115130.0,0.34576]
[1755872704858,1.08034831,115140.0,115130.0,0.34576]
[1755872705159,4e-05,115140.0,115130.0,0.8121378]
[1755872705367,0.0868146,115200.0,115130.0,0.8121378]
[1755872705368,0.08683,115180.0,115160.0,0.0008]
[1755872705553,0.5325612,115190.0,115170.0,0.34576]
[1755872705862,0.0008,115220.0,115160.0,1.6441204]
[1755872706057,0.7243912,115200.0,115190.0,0.14456]
[1755872706453,0.8120212,115200.0,115180.0,0.2012]
[1755872706661,0.27866,115180.0,115170.0,0.14456]
[1755872706958,0.0002,115180.0,115170.0,0.40491]
[1755872707564,0.0002,115180.0,115170.0,0.7425445]
[1755872707763,0.19183,115210.0,115170.0,0.85713683]
[1755872707958,0.005,115200.0,115190.0,0.20451]
[1755872708158,4e-05,115200.0,115190.0,0.1467694]
[1755872708362,0.21089361,115230.0,115210.0,0.40491]
[1755872708557,0.01906361,115230.0,115220.0,0.34576]
[1755872708762,0.21089361,115230.0,115220.0,0.41401886]
[1755872709261,0.26906361,115230.0,115220.0,0.47316886]
[1755872709461,1.22867481,115230.0,115220.0,0.06825886]
[1755872709661,0.27866,115220.0,115200.0,0.26035]
[1755872709965,0.44531361,115230.0,115220.0,0.14456]
[1755872710161,0.23442,115250.0,115220.0,0.14456]
[1755872710353,0.27866,115240.0,115230.0,0.34576]
[1755872710556,0.27866,115240.0,115230.0,0.14456]
[1755872710756,1.0612212,115240.0,115230.0,0.14456]
[1755872710958,1.2088112,115240.0,115230.0,0.14456]
[1755872711162,0.67645,115240.0,115220.0,0.34576]
[1755872711363,0.23462,115240.0,115220.0,0.34576]
[1755872711557,0.42645,115240.0,115220.0,0.2012]
[1755872711768,0.42645,115240.0,115230.0,0.14456]
[1755872711958,0.42845,115240.0,115230.0,0.14456]
[1755872712161,0.08903,115240.0,115230.0,0.34576]
[1755872712354,0.8134212,115240.0,115230.0,0.14456]
[1755872712555,0.48662,115240.0,115220.0,0.41381054]
[1755872712762,0.23462,115240.0,115220.0,0.34576]
[1755872712962,0.0002,115240.0,115230.0,0.40491]
[1755872713163,0.0002,115240.0,115230.0,0.40571]
[1755872713365,0.8112212,115270.0,115250.0,0.40491]
[1755872713558,0.19183,115260.0,115250.0,0.34576]
[1755872713756,0.7243912,115260.0,115250.0,0.14456]
[1755872713957,0.27866,115270.0,115260.0,0.14456]
[1755872714166,0.27866,115270.0,115260.0,0.41516134]
[1755872714369,0.27866,115270.0,115260.0,0.21396134]
[1755872714370,0.8112212,115270.0,115260.0,0.21396134]
[1755872714559,0.9588112,115270.0,115260.0,0.06940134]
[1755872714759,0.9588112,115270.0,115240.0,0.17402264]
[1755872714760,0.23442,115260.0,115240.0,0.14456]
[1755872715063,0.8112212,115250.0,115240.0,0.14456]
[1755872715261,0.14759,115260.0,115240.0,0.34576]
[1755872715465,0.19183,115270.0,115250.0,0.40491]
[1755872715761,0.08683,115280.0,115270.0,0.34576]
[1755872715963,0.7243912,115290.0,115280.0,0.14456]
[1755872716163,0.5325612,115290.0,115280.0,0.41626853]
[1755872716368,0.5325612,115290.0,115280.0,0.47541853]
[1755872716663,0.0002,115290.0,115280.0,0.47461853]
[1755872716862,0.0002,115290.0,115280.0,0.41546853]
[1755872717062,1.2102212,115290.0,115280.0,0.06970853]
[1755872717258,0.8695054,115290.0,115260.0,0.4102]
[1755872717460,0.8695054,115290.0,115250.0,0.14985]
[1755872717461,0.26525,115260.0,115250.0,0.14985]
[1755872717665,0.0002,115260.0,115250.0,0.39431]
[1755872717864,0.0002,115260.0,115250.0,0.39511]
[1755872718067,0.0002,115260.0,115250.0,0.64511]
[1755872718570,0.0008,115270.0,115260.0,0.39511]
[1755872718770,0.23035,115300.0,115260.0,0.0008]
[1755872718970,0.7163012,115290.0,115280.0,0.33516]
[1755872719182,0.5325612,115290.0,115280.0,0.33516]
[1755872719475,0.08155,115300.0,115290.0,0.33516]
[1755872719769,0.26525,115320.0,115270.0,1.6383587]
[1755872719966,0.7978112,115320.0,115310.0,0.14985]
[1755872720166,0.26525,115320.0,115310.0,0.14985]
[1755872720569,0.8845327,115320.0,115310.0,0.14985]
[1755872720870,1.0530227,115320.0,115310.0,0.07038417]
[1755872721167,0.18374,115310.0,115300.0,0.33516]
[1755872721373,0.08151,115320.0,115310.0,0.14985]
[1755872721684,0.1682183,115340.0,115320.0,0.14985]
[1755872721878,0.3519583,115340.0,115330.0,0.14985]
[1755872722178,0.3521583,115340.0,115330.0,0.14985]
[1755872722366,0.38811,115330.0,115300.0,0.24446]
[1755872722568,0.8000112,115320.0,115310.0,0.14985]
[1755872722965,1.1367325,115320.0,115310.0,0.14985]
[1755872723168,0.12286,115310.0,115290.0,0.33516]
[1755872723363,0.7978112,115300.0,115290.0,0.14985]
[1755872723570,0.6556212,115300.0,115270.0,0.14985]
[1755872723770,0.3375288,115310.0,115280.0,0.33516]
[1755872723771,0.0002,115290.0,115280.0,0.33516]
[1755872723974,0.0002,115290.0,115280.0,0.39431]
[1755872724164,0.18374,115310.0,115290.0,0.05915]
[1755872724364,0.08151,115320.0,115310.0,0.33516]
[1755872724577,0.38811,115330.0,115320.0,0.18531]
[1755872724769,0.08151,115310.0,115290.0,0.05915]
[1755872725074,0.12286,115320.0,115280.0,0.05915]
[1755872725075,0.18374,115290.0,115280.0,0.05915]
[1755872725376,0.26525,115280.0,115270.0,0.26213241]
[1755872725565,0.12286,115300.0,115280.0,0.33516]
[1755872725566,0.08151,115290.0,115280.0,0.33516]
[1755872725764,0.08151,115290.0,115270.0,0.17143241]
[1755872725765,0.26525,115310.0,115290.0,0.24446]
[1755872725965,0.9206712,115310.0,115300.0,0.14985]
[1755872726167,0.26525,115300.0,115290.0,0.14985]
[1755872726370,0.37286,115310.0,115300.0,0.14985]
[1755872726371,0.7978112,115310.0,115300.0,0.14985]
[1755872726686,0.26525,115300.0,115290.0,0.001]
[1755872726873,0.38811,115300.0,115290.0,0.001]
[1755872727175,0.63811,115300.0,115290.0,0.001]
[1755872727474,0.51545,115300.0,115290.0,0.15085]
[1755872727680,0.63831,115300.0,115290.0,0.001]
[1755872727869,0.51545,115300.0,115290.0,0.33616]
[1755872728180,0.63831,115300.0,115290.0,0.001]
[1755872728474,0.63831,115300.0,115270.0,0.14985]
[1755872728475,0.26525,115280.0,115270.0,0.14985]
[1755872728778,0.26525,115270.0,115260.0,0.3530171]
[1755872729074,0.20437,115300.0,115270.0,0.39511]
[1755872729276,0.26525,115300.0,115280.0,0.39431]
[1755872729478,0.26525,115300.0,115290.0,0.14985]
[1755872729666,0.26525,115290.0,115280.0,0.14985]
[1755872729972,0.26525,115280.0,115270.0,0.15185]
[1755872730177,0.08151,115280.0,115270.0,0.33716]
[1755872730378,0.26525,115280.0,115270.0,0.33716]
[1755872730569,0.7978112,115280.0,115270.0,0.15185]
[1755872730877,0.7978112,115280.0,115270.0,0.002]
[1755872731077,0.20437,115260.0,115240.0,0.17770493]
[1755872731288,0.33313,115260.0,115250.0,0.14985]
[1755872731572,0.33313,115260.0,115240.0,0.21316493]
[1755872731573,0.6554212,115260.0,115240.0,0.36301493]
[1755872731777,0.6120712,115260.0,115250.0,0.33516]
[1755872731969,0.12876,115270.0,115260.0,0.33516]
[1755872732168,0.12876,115270.0,115260.0,0.14985]
[1755872732365,0.12896,115270.0,115260.0,0.33516]
[1755872732571,0.0002,115270.0,115260.0,0.33516]
[1755872732771,0.0002,115270.0,115260.0,0.39631]
[1755872732966,0.0002,115270.0,115260.0,0.33516]
[1755872733168,0.12286,115300.0,115270.0,0.06115]
[1755872733373,0.12876,115300.0,115290.0,0.33516]
[1755872733975,0.8656912,115300.0,115290.0,0.14985]
[1755872734191,0.8656912,115300.0,115280.0,0.14985]
[1755872734192,0.21027,115290.0,115280.0,0.14985]
[1755872734476,0.21027,115290.0,115280.0,0.33516]
[1755872734679,0.08151,115290.0,115280.0,0.33516]
[1755872734976,0.08151,115300.0,115290.0,0.33516]
[1755872735180,0.14821426,115310.0,115300.0,0.33516]
[1755872735383,0.01945426,115310.0,115300.0,0.33516]
[1755872735581,0.01945426,115310.0,115300.0,0.7338465]
[1755872735979,0.01945125,115330.0,115310.0,0.0008]
[1755872736178,0.20437,115360.0,115350.0,0.14985]
[1755872736378,0.08151,115360.0,115350.0,0.07955272]
[1755872736580,0.08171,115360.0,115350.0,0.07955272]
[1755872736781,0.7630712,115360.0,115350.0,0.07955272]
[1755872736989,0.08151,115350.0,115330.0,0.06115]
[1755872737187,0.23051,115350.0,115340.0,0.18531]
[1755872737580,0.48051,115350.0,115330.0,0.24646]
[1755872737784,0.23051,115350.0,115300.0,1.29710585]
[1755872737987,0.08171,115330.0,115320.0,0.18531]
[1755872738189,0.0002,115330.0,115320.0,0.24646]
[1755872738487,0.08151,115350.0,115320.0,0.64711]
[1755872738675,0.23189,115360.0,115350.0,0.14985]
[1755872738676,0.3134,115360.0,115350.0,0.14985]